[Event "Chinese Championship-B Women 2024"]
[Site "Liaocheng"]
[Date "2024.04.24"]
[Round "4.13"]
[White "Yu, Xilei"]
[Black "Shi Shuhua"]
[Result "1/2-1/2"]
[WhiteElo "1676"]
[BlackElo "1840"]
[PlyCount "88"]
[EventDate "2024.04.24"]
[EventType "swiss"]
[EventCountry "CHN"]
[TimeControl "5400+30"]

1. e4 {[%emt 1:31:00]} c5 {[%emt 0:00:22]} 2. Nf3 {[%emt 0:00:00]} d6 {[%emt 0:00:48]} 3. Bb5+ {[%emt 0:00:00]} Nc6 {[%emt 0:01:01]} 4. O-O {[%emt 0:00:00]} Bd7 {[%emt 0:00:48]} 5. Nc3 {[%emt 0:00:00]} Nf6 {[%emt 0:00:49]} 6. d4 {[%emt 0:00:00]} cxd4 {[%emt 0:00:20]} 7. Nxd4 {[%emt 0:00:00]} g6 {[%emt 0:00:38]} 8. Nxc6 {[%emt 0:00:00]} bxc6 {[%emt 0:00:28]} 9. Bc4 {[%emt 0:00:00]} Bg7 {[%emt 0:00:16]} 10. h3 {[%emt 0:00:00]} O-O {[%emt 0:00:16]} 11. f4 {[%emt 0:00:00]} Qb6+ {[%emt 0:01:46]} 12. Kh2 {[%emt 0:00:00]} Rad8 {[%emt 0:02:05]} 13. Qf3 {[%emt 0:00:00]} e6 {[%emt 0:02:14]} 14. Bb3 {[%emt 0:00:00]} c5 {[%emt 0:01:52]} 15. g4 {[%emt 0:00:00]} Bc6 {[%emt 0:07:00]} 16. g5 {[%emt 0:00:00]} Nd7 {[%emt 0:04:21]} 17. Qd3 {[%emt 0:00:00]} Qb8 {[%emt 0:06:14]} 18. Be3 {[%emt 0:00:00]} Nb6 {[%emt 0:02:09]} 19. Rad1 {[%emt 0:00:00]} Qb7 {[%emt 0:14:48]} 20. e5 {[%emt 0:00:00]} c4 {[%emt 0:05:45]} 21. Bxc4 {[%emt 0:00:00]} Nxc4 {[%emt 0:00:06]} 22. Qxc4 {[%emt 0:00:00]} dxe5 {[%emt 0:02:40]} 23. Bc5 {[%emt 0:00:00]} Rfe8 {[%emt 0:03:01]} 24. Rxd8 {[%emt 0:00:00]} Rxd8 {[%emt 0:00:04]} 25. Bxa7 {[%emt 0:00:00]} exf4 {[%emt 0:04:30]} 26. Rd1 {[%emt 0:00:00]} Rxd1 {[%emt 0:04:00]} 27. Nxd1 {[%emt 0:00:00]} f3 {[%emt 0:02:03]} 28. Bf2 {[%emt 0:00:00]} Bd5 {[%emt 0:03:44]} 29. Qa4 {[%emt 0:00:00]} Be5+ {[%emt 0:01:36]} 30. Kg1 {[%emt 0:00:00]} Bc6 {[%emt 0:01:15]} 31. Qc4 {[%emt 0:00:00]} Bb8 {[%emt 0:00:51]} 32. Ne3 {[%emt 0:00:00]} Ba7 {[%emt 0:03:15]} 33. Ng4 {[%emt 0:00:00]} Bxf2+ {[%emt 0:01:59]} 34. Kxf2 {[%emt 0:00:00]} Qb6+ {[%emt 0:00:22]} 35. Ne3 {[%emt 0:00:00]} Qc7 {[%emt 0:00:37]} 36. Ng4 {[%emt 0:00:00]} Qb6+ {[%emt 0:00:03]} 37. Ne3 {[%emt 0:00:32]} Bb7 {[%emt 0:01:25]} 38. Qc3 {[%emt 0:01:42]} Qb5 {[%emt 0:01:15]} 39. Ng4 {[%emt 0:02:38]} Qe2+ {[%emt 0:04:44]} 40. Kg3 {[%emt 0:00:04]} Qg2+ {[%emt 0:00:07]} 41. Kf4 {[%emt 0:01:18]} f2 {[%emt 0:01:15]} 42. Nf6+ {[%emt 0:03:08]} Kf8 {[%emt 0:00:09]} 43. Qc5+ {[%emt 0:00:19]} Kg7 {[%emt 0:00:37]} 44. Ne8+ {[%emt 0:00:17]} Kg8 {[%emt 0:00:05]} 1/2-1/2

[Event "Chinese Championship-B Women 2024"]
[Site "Liaocheng"]
[Date "2024.04.24"]
[Round "4.14"]
[White "Cui, Wen"]
[Black "Shao, Yanrui"]
[Result "1-0"]
[WhiteElo "1825"]
[BlackElo "1514"]
[PlyCount "131"]
[EventDate "2024.04.24"]
[EventType "swiss"]
[EventCountry "CHN"]
[TimeControl "5400+30"]

1. e4 {[%emt 0:00:06]} c5 {[%emt 0:00:05]} 2. Nf3 {[%emt 0:00:07]} d6 {[%emt 0:00:11]} 3. d4 {[%emt 0:00:07]} cxd4 {[%emt 0:00:06]} 4. Nxd4 {[%emt 0:00:08]} Nf6 {[%emt 0:00:06]} 5. Nc3 {[%emt 0:00:09]} a6 {[%emt 0:00:10]} 6. Be3 {[%emt 0:00:24]} e5 {[%emt 0:00:10]} 7. Nb3 {[%emt 0:00:10]} Be6 {[%emt 0:01:00]} 8. f3 {[%emt 0:00:26]} Be7 {[%emt 0:00:07]} 9. Qd2 {[%emt 0:00:34]} Nbd7 {[%emt 0:00:56]} 10. O-O-O {[%emt 0:01:40]} b5 {[%emt 0:01:17]} 11. g4 {[%emt 0:05:05]} b4 {[%emt 0:01:52]} 12. Nd5 {[%emt 0:06:37]} Bxd5 {[%emt 0:00:54]} 13. exd5 {[%emt 0:00:10]} a5 {[%emt 0:00:23]} 14. Kb1 {[%emt 0:04:46]} a4 {[%emt 0:04:50]} 15. Nc1 {[%emt 0:00:47]} Rb8 {[%emt 0:00:51]} 16. g5 {[%emt 0:07:06]} Nh5 {[%emt 0:00:58]} 17. Rg1 {[%emt 0:09:53]} g6 {[%emt 0:01:41]} 18. Nd3 {[%emt 0:07:27]} b3 {[%emt 0:02:51]} 19. cxb3 {[%emt 0:01:17]} axb3 {[%emt 0:00:06]} 20. a3 {[%emt 0:00:16]} Ng7 {[%emt 0:04:36]} 21. Nb4 {[%emt 0:02:21]} Qa5 {[%emt 0:10:58]} 22. Nc6 {[%emt 0:03:40]} Qxd2 {[%emt 0:01:21]} 23. Rxd2 {[%emt 0:00:14]} Ra8 {[%emt 0:01:40]} 24. Bc4 {[%emt 0:08:30]} Nf5 {[%emt 0:01:21]} 25. Bf2 {[%emt 0:01:22]} O-O {[%emt 0:01:42]} 26. Bxb3 {[%emt 0:01:00]} Nb8 {[%emt 0:00:35]} 27. Nxe7+ {[%emt 0:07:36]} Nxe7 {[%emt 0:00:01]} 28. Rc1 {[%emt 0:00:29]} Na6 {[%emt 0:02:14]} 29. Ba2 {[%emt 0:03:05]} f5 {[%emt 0:01:50]} 30. gxf6 {[%emt 0:04:26]} Rxf6 {[%emt 0:00:16]} 31. Bh4 {[%emt 0:00:08]} Rf7 {[%emt 0:00:42]} 32. Bxe7 {[%emt 0:00:15]} Rxe7 {[%emt 0:00:01]} 33. Rc6 {[%emt 0:00:25]} Rd7 {[%emt 0:00:02]} 34. Bc4 {[%emt 0:02:20]} Nc5 {[%emt 0:01:13]} 35. b4 {[%emt 0:01:16]} Na4 {[%emt 0:01:19]} 36. Kc2 {[%emt 0:01:16]} Rb8 {[%emt 0:00:57]} 37. Kb3 {[%emt 0:03:35]} Nc5+ {[%emt 0:00:54]} 38. Kc2 {[%emt 0:00:44]} Na4 {[%emt 0:00:01]} 39. Bf1 {[%emt 0:03:05]} g5 {[%emt 0:03:41]} 40. Bh3 {[%emt 0:00:14]} Rdd8 {[%emt 0:00:28]} 41. Rc7 {[%emt 0:02:07]} Rf8 {[%emt 0:01:05]} 42. Be6+ {[%emt 0:00:39]} Kh8 {[%emt 0:00:03]} 43. Rd3 {[%emt 0:00:46]} h5 {[%emt 0:02:39]} 44. Ra7 {[%emt 0:01:45]} Nb6 {[%emt 0:00:26]} 45. Rc3 {[%emt 0:01:01]} Rf4 {[%emt 0:01:17]} 46. Kb3 {[%emt 0:01:36]} Rbf8 {[%emt 0:01:30]} 47. Ra6 {[%emt 0:04:20]} Rb8 {[%emt 0:00:56]} 48. a4 {[%emt 0:01:21]} Rb7 {[%emt 0:08:55]} 49. a5 {[%emt 0:03:47]} Nd7 {[%emt 0:01:49]} 50. Rxd6 {[%emt 0:00:53]} Rfxb4+ {[%emt 0:01:06]} 51. Kc2 {[%emt 0:00:14]} Rb2+ {[%emt 0:00:28]} 52. Kd3 {[%emt 0:00:26]} Nf8 {[%emt 0:09:23]} 53. a6 {[%emt 0:00:47]} Ra7 {[%emt 0:00:12]} 54. Bc8 {[%emt 0:01:48]} Rxh2 {[%emt 0:00:41]} 55. Bb7 {[%emt 0:00:26]} g4 {[%emt 0:01:28]} 56. fxg4 {[%emt 0:00:31]} hxg4 {[%emt 0:00:04]} 57. Ke4 {[%emt 0:00:32]} Rh5 {[%emt 0:01:13]} 58. Rd8 {[%emt 0:00:38]} Kg7 {[%emt 0:04:01]} 59. Rc7+ {[%emt 0:00:12]} Kg6 {[%emt 0:02:41]} 60. Rxf8 {[%emt 0:00:12]} Kg5 {[%emt 0:00:45]} 61. Rg8+ {[%emt 0:00:42]} Kh4 {[%emt 0:00:02]} 62. Rcg7 {[%emt 0:00:08]} g3 {[%emt 0:01:58]} 63. Rxg3 {[%emt 0:00:18]} Rh6 {[%emt 0:01:00]} 64. Rg1 {[%emt 0:00:10]} Rg6 {[%emt 0:01:15]} 65. R8xg6 {[%emt 0:00:13]} Kh5 {[%emt 0:00:21]} 66. Rg8 {[%emt 0:00:06]} 1-0

[Event "Chinese Championship-B Women 2024"]
[Site "Liaocheng"]
[Date "2024.04.24"]
[Round "5.1"]
[White "Sun, Jihan"]
[Black "Wang, Chuqiao"]
[Result "0-1"]
[WhiteElo "1781"]
[BlackElo "2302"]
[PlyCount "94"]
[EventDate "2024.04.24"]
[EventType "swiss"]
[EventCountry "CHN"]
[TimeControl "5400+30"]

1. e4 {[%emt 0:00:03]} e5 {[%emt 0:00:04]} 2. Nf3 {[%emt 0:00:04]} Nc6 {[%emt 0:00:04]} 3. Bc4 {[%emt 0:00:10]} Nf6 {[%emt 0:00:11]} 4. d3 {[%emt 0:01:58]} Bc5 {[%emt 0:00:08]} 5. c3 {[%emt 0:00:08]} a5 {[%emt 0:00:04]} 6. O-O {[%emt 0:02:34]} d6 {[%emt 0:00:05]} 7. Nbd2 {[%emt 0:00:30]} O-O {[%emt 0:00:19]} 8. Re1 {[%emt 0:00:45]} Be6 {[%emt 0:00:29]} 9. Bb5 {[%emt 0:01:48]} Qb8 {[%emt 0:00:28]} 10. Nf1 {[%emt 0:00:06]} Qa7 {[%emt 0:00:10]} 11. Be3 {[%emt 0:00:09]} Bxe3 {[%emt 0:05:50]} 12. Nxe3 {[%emt 0:00:08]} Ne7 {[%emt 0:01:57]} 13. Bc4 {[%emt 0:05:43]} Bxc4 {[%emt 0:00:56]} 14. Nxc4 {[%emt 0:00:17]} b5 {[%emt 0:02:58]} 15. Ne3 {[%emt 0:04:09]} Ng6 {[%emt 0:02:40]} 16. a4 {[%emt 0:04:07]} Qc5 {[%emt 0:13:11]} 17. d4 {[%emt 0:28:57]} Qb6 {[%emt 0:03:48]} 18. Qe2 {[%emt 0:09:37]} exd4 {[%emt 0:02:59]} 19. cxd4 {[%emt 0:03:10]} bxa4 {[%emt 0:11:05]} 20. e5 {[%emt 0:01:44]} dxe5 {[%emt 0:02:16]} 21. dxe5 {[%emt 0:01:06]} Nd7 {[%emt 0:00:44]} 22. Rxa4 {[%emt 0:08:28]} Nc5 {[%emt 0:02:16]} 23. Rc4 {[%emt 0:00:45]} Rad8 {[%emt 0:01:45]} 24. Rd1 {[%emt 0:01:43]} Ne6 {[%emt 0:03:12]} 25. g3 {[%emt 0:09:23]} Qb5 {[%emt 0:03:00]} 26. Rc2 {[%emt 0:03:11]} Qb7 {[%emt 0:00:20]} 27. Rc4 {[%emt 0:06:02]} Qb5 {[%emt 0:12:49]} 28. Rc2 {[%emt 0:00:16]} Qb7 {[%emt 0:05:03]} 29. Rc4 {[%emt 0:00:07]} c5 {[%emt 0:01:30]} 30. h4 {[%emt 0:05:40]} Rxd1+ {[%emt 0:05:35]} 31. Nxd1 {[%emt 0:00:18]} h6 {[%emt 0:00:34]} 32. Nc3 {[%emt 0:01:39]} Rd8 {[%emt 0:00:54]} 33. h5 {[%emt 0:00:53]} Ne7 {[%emt 0:01:13]} 34. Ne4 {[%emt 0:00:07]} Qd5 {[%emt 0:01:35]} 35. Nd6 {[%emt 0:01:14]} Nd4 {[%emt 0:01:59]} 36. Nxd4 {[%emt 0:00:24]} cxd4 {[%emt 0:00:03]} 37. Rc7 {[%emt 0:00:54]} d3 {[%emt 0:00:18]} 38. Qd2 {[%emt 0:00:41]} Qxe5 {[%emt 0:00:08]} 39. Nb5 {[%emt 0:00:31]} Qe2 {[%emt 0:00:57]} 40. Qxe2 {[%emt 0:00:30]} dxe2 {[%emt 0:00:05]} 41. Rxe7 {[%emt 0:00:08]} Rd1+ {[%emt 0:00:04]} 42. Kg2 {[%emt 0:00:05]} e1=Q {[%emt 0:00:03]} 43. Rxe1 {[%emt 0:00:07]} Rxe1 {[%emt 0:00:03]} 44. Nc3 {[%emt 0:00:07]} Rc1 {[%emt 0:00:05]} 45. Kf3 {[%emt 0:00:15]} Rc2 {[%emt 0:00:05]} 46. Na4 {[%emt 0:00:20]} Rc4 {[%emt 0:00:09]} 47. b3 {[%emt 0:00:13]} Rb4 {[%emt 0:00:04]} 0-1

[Event "Chinese Championship-B Women 2024"]
[Site "Liaocheng"]
[Date "2024.04.24"]
[Round "5.2"]
[White "Wang, Xiaoyan"]
[Black "Zhou, Shumeng"]
[Result "1/2-1/2"]
[WhiteElo "1932"]
[BlackElo "1800"]
[PlyCount "136"]
[EventDate "2024.04.24"]
[EventType "swiss"]
[EventCountry "CHN"]
[TimeControl "5400+30"]

1. d4 {[%emt 0:00:03]} d5 {[%emt 0:00:06]} 2. c4 {[%emt 0:00:04]} e6 {[%emt 0:00:06]} 3. Nc3 {[%emt 0:00:04]} Nf6 {[%emt 0:00:04]} 4. cxd5 {[%emt 0:00:18]} exd5 {[%emt 0:00:02]} 5. Bg5 {[%emt 0:00:05]} c6 {[%emt 0:00:03]} 6. e3 {[%emt 0:00:10]} Be7 {[%emt 0:00:30]} 7. Bd3 {[%emt 0:00:15]} h6 {[%emt 0:00:06]} 8. Bh4 {[%emt 0:00:17]} O-O {[%emt 0:00:08]} 9. Qc2 {[%emt 0:00:32]} Re8 {[%emt 0:00:42]} 10. Nge2 {[%emt 0:01:13]} Nbd7 {[%emt 0:00:10]} 11. O-O {[%emt 0:00:12]} Nh5 {[%emt 0:00:06]} 12. Ng3 {[%emt 0:11:56]} Bxh4 {[%emt 0:02:11]} 13. Nxh5 {[%emt 0:00:05]} Nf8 {[%emt 0:09:27]} 14. Nf4 {[%emt 0:06:08]} Ne6 {[%emt 0:04:30]} 15. Nxe6 {[%emt 0:01:40]} Bxe6 {[%emt 0:00:40]} 16. b4 {[%emt 0:01:03]} Qd6 {[%emt 0:03:28]} 17. Rab1 {[%emt 0:04:52]} Bd8 {[%emt 0:03:19]} 18. b5 {[%emt 0:05:34]} c5 {[%emt 0:04:53]} 19. dxc5 {[%emt 0:01:05]} Qxc5 {[%emt 0:00:03]} 20. Ne2 {[%emt 0:07:02]} Qxc2 {[%emt 0:16:07]} 21. Bxc2 {[%emt 0:00:04]} d4 {[%emt 0:00:46]} 22. Nxd4 {[%emt 0:00:23]} Bxa2 {[%emt 0:00:08]} 23. Ra1 {[%emt 0:05:53]} Bc4 {[%emt 0:01:39]} 24. Rfc1 {[%emt 0:02:20]} Bb6 {[%emt 0:03:05]} 25. Bh7+ {[%emt 0:08:17]} Kxh7 {[%emt 0:00:08]} 26. Rxc4 {[%emt 0:00:00]} Re5 {[%emt 0:02:02]} 27. Rb1 {[%emt 0:02:07]} Rd8 {[%emt 0:01:24]} 28. g3 {[%emt 0:01:57]} Rdd5 {[%emt 0:12:57]} 29. Rcb4 {[%emt 0:01:25]} Re4 {[%emt 0:01:48]} 30. Ra4 {[%emt 0:01:54]} Ree5 {[%emt 0:12:17]} 31. Rab4 {[%emt 0:00:59]} Bc5 {[%emt 0:01:28]} 32. Ra4 {[%emt 0:05:14]} Bxd4 {[%emt 0:03:26]} 33. exd4 {[%emt 0:00:36]} Rxb5 {[%emt 0:00:08]} 34. Rd1 {[%emt 0:04:36]} Red5 {[%emt 0:01:20]} 35. Rxa7 {[%emt 0:00:14]} Rb2 {[%emt 0:01:55]} 36. Rc1 {[%emt 0:02:33]} Rf5 {[%emt 0:04:16]} 37. Rf1 {[%emt 0:13:04]} Kg6 {[%emt 0:00:57]} 38. f3 {[%emt 0:02:45]} Rh5 {[%emt 0:02:17]} 39. h4 {[%emt 0:01:09]} Kf6 {[%emt 0:01:06]} 40. Rf2 {[%emt 0:01:18]} Rhb5 {[%emt 0:00:21]} 41. Ra8 {[%emt 0:01:57]} Rb1+ {[%emt 0:00:56]} 42. Kg2 {[%emt 0:02:46]} Rd1 {[%emt 0:00:18]} 43. Ra4 {[%emt 0:00:05]} Rbb1 {[%emt 0:01:07]} 44. Re2 {[%emt 0:00:37]} Rg1+ {[%emt 0:04:10]} 45. Kh3 {[%emt 0:00:20]} h5 {[%emt 0:01:00]} 46. Ra5 {[%emt 0:00:46]} g6 {[%emt 0:00:39]} 47. Rd5 {[%emt 0:00:15]} Rb3 {[%emt 0:01:35]} 48. Rd6+ {[%emt 0:01:01]} Kg7 {[%emt 0:00:08]} 49. Rf2 {[%emt 0:00:28]} Rd1 {[%emt 0:01:12]} 50. Kg2 {[%emt 0:03:43]} Rb4 {[%emt 0:00:10]} 51. d5 {[%emt 0:01:34]} Rb5 {[%emt 0:00:01]} 52. Rd7 {[%emt 0:01:29]} Rdxd5 {[%emt 0:00:05]} 53. Rc7 {[%emt 0:01:04]} Rb1 {[%emt 0:00:17]} 54. Re2 {[%emt 0:00:12]} b5 {[%emt 0:00:11]} 55. Rb7 {[%emt 0:00:27]} b4 {[%emt 0:01:07]} 56. g4 {[%emt 0:00:19]} hxg4 {[%emt 0:00:44]} 57. fxg4 {[%emt 0:00:02]} Rd4 {[%emt 0:00:38]} 58. Rf2 {[%emt 0:00:29]} Rxg4+ {[%emt 0:00:46]} 59. Kh3 {[%emt 0:00:08]} Rc4 {[%emt 0:00:59]} 60. Rfxf7+ {[%emt 0:00:09]} Kg8 {[%emt 0:00:20]} 61. Rg7+ {[%emt 0:02:01]} Kf8 {[%emt 0:00:06]} 62. Rxg6 {[%emt 0:00:22]} Rh1+ {[%emt 0:00:59]} 63. Kg2 {[%emt 0:00:07]} Rhxh4 {[%emt 0:00:11]} 64. Ra6 {[%emt 0:00:13]} Rhg4+ {[%emt 0:00:39]} 65. Kf3 {[%emt 0:00:34]} Rgf4+ {[%emt 0:00:08]} 66. Ke3 {[%emt 0:00:15]} Rfe4+ {[%emt 0:00:08]} 67. Kd3 {[%emt 0:00:19]} Red4+ {[%emt 0:01:28]} 68. Ke3 {[%emt 0:00:15]} Re4+ {[%emt 0:01:08]} 1/2-1/2

[Event "Chinese Championship-B Women 2024"]
[Site "Liaocheng"]
[Date "2024.04.24"]
[Round "5.3"]
[White "Xue, Shixuan"]
[Black "Jiang, Tianyu"]
[Result "1/2-1/2"]
[WhiteElo "1790"]
[BlackElo "1929"]
[PlyCount "127"]
[EventDate "2024.04.24"]
[EventType "swiss"]
[EventCountry "CHN"]
[TimeControl "5400+30"]

1. e4 {[%emt 0:00:06]} c5 {[%emt 0:00:09]} 2. Nf3 {[%emt 0:00:10]} e6 {[%emt 0:02:05]} 3. c3 {[%emt 0:00:46]} d5 {[%emt 0:01:54]} 4. e5 {[%emt 0:03:28]} d4 {[%emt 0:01:47]} 5. cxd4 {[%emt 0:05:48]} cxd4 {[%emt 0:07:32]} 6. Bb5+ {[%emt 0:00:41]} Bd7 {[%emt 0:21:29]} 7. Nxd4 {[%emt 0:16:33]} Bxb5 {[%emt 0:10:23]} 8. Nxb5 {[%emt 0:00:22]} a6 {[%emt 0:02:43]} 9. N5c3 {[%emt 0:05:07]} Nc6 {[%emt 0:00:50]} 10. O-O {[%emt 0:01:51]} Qd4 {[%emt 0:10:31]} 11. Ne2 {[%emt 0:14:33]} Qxe5 {[%emt 0:05:24]} 12. d4 {[%emt 0:00:31]} Qa5 {[%emt 0:12:00]} 13. Nbc3 {[%emt 0:02:06]} Nf6 {[%emt 0:00:34]} 14. Qb3 {[%emt 0:04:21]} Qb4 {[%emt 0:02:47]} 15. Qd1 {[%emt 0:04:30]} Rd8 {[%emt 0:02:22]} 16. a3 {[%emt 0:03:30]} Qa5 {[%emt 0:02:42]} 17. b4 {[%emt 0:14:44]} Qh5 {[%emt 0:04:19]} 18. Bf4 {[%emt 0:06:47]} Be7 {[%emt 0:01:51]} 19. Qa4 {[%emt 0:02:04]} O-O {[%emt 0:00:59]} 20. b5 {[%emt 0:02:26]} axb5 {[%emt 0:00:32]} 21. Qxb5 {[%emt 0:00:24]} Qxb5 {[%emt 0:06:18]} 22. Nxb5 {[%emt 0:00:02]} Rd7 {[%emt 0:00:32]} 23. Rfd1 {[%emt 0:01:06]} Nd5 {[%emt 0:00:15]} 24. Rd3 {[%emt 0:02:54]} Rfd8 {[%emt 0:00:59]} 25. Be3 {[%emt 0:02:50]} Bf6 {[%emt 0:00:41]} 26. Rad1 {[%emt 0:00:57]} h6 {[%emt 0:00:25]} 27. g3 {[%emt 0:00:09]} Kh7 {[%emt 0:00:46]} 28. Kg2 {[%emt 0:02:52]} g6 {[%emt 0:00:41]} 29. Bc1 {[%emt 0:00:24]} Bg7 {[%emt 0:00:12]} 30. Bb2 {[%emt 0:01:47]} Nde7 {[%emt 0:00:41]} 31. f4 {[%emt 0:00:29]} g5 {[%emt 0:00:54]} 32. Kf2 {[%emt 0:00:48]} Kg6 {[%emt 0:00:12]} 33. h3 {[%emt 0:01:09]} Nf5 {[%emt 0:00:14]} 34. g4 {[%emt 0:00:18]} Nfe7 {[%emt 0:00:08]} 35. Kf3 {[%emt 0:00:19]} Kh7 {[%emt 0:00:14]} 36. Kg3 {[%emt 0:00:27]} Bh8 {[%emt 0:00:52]} 37. h4 {[%emt 0:00:34]} gxf4+ {[%emt 0:00:27]} 38. Nxf4 {[%emt 0:00:19]} Nd5 {[%emt 0:01:19]} 39. Ne2 {[%emt 0:01:08]} h5 {[%emt 0:00:19]} 40. g5 {[%emt 0:00:21]} Nce7 {[%emt 0:00:34]} 41. Rf1 {[%emt 0:00:25]} Nf5+ {[%emt 0:00:14]} 42. Kh3 {[%emt 0:00:40]} Nde3 {[%emt 0:00:05]} 43. Rf3 {[%emt 0:00:33]} Nc4 {[%emt 0:00:26]} 44. Bc3 {[%emt 0:00:29]} Ne5 {[%emt 0:00:41]} 45. Nf4 {[%emt 0:00:36]} Nxf3 {[%emt 0:00:23]} 46. Rxf3 {[%emt 0:00:09]} Nxd4 {[%emt 0:01:10]} 47. Nxd4 {[%emt 0:00:43]} Bxd4 {[%emt 0:00:39]} 48. g6+ {[%emt 0:00:17]} Kh6 {[%emt 0:00:41]} 49. Bxd4 {[%emt 0:00:47]} Rxd4 {[%emt 0:00:28]} 50. gxf7 {[%emt 0:00:03]} R4d6 {[%emt 0:00:34]} 51. Nxe6 {[%emt 0:00:24]} Rxe6 {[%emt 0:00:07]} 52. f8=Q+ {[%emt 0:01:43]} Rxf8 {[%emt 0:00:06]} 53. Rxf8 {[%emt 0:00:00]} Re3+ {[%emt 0:00:07]} 54. Kg2 {[%emt 0:00:00]} Rxa3 {[%emt 0:00:32]} 55. Rf6+ {[%emt 0:00:00]} Kg7 {[%emt 0:01:15]} 56. Rb6 {[%emt 0:00:00]} Ra7 {[%emt 0:00:44]} 57. Kg3 {[%emt 0:00:00]} Kf8 {[%emt 0:00:27]} 58. Rh6 {[%emt 0:00:22]} Ra5 {[%emt 0:00:30]} 59. Rb6 {[%emt 0:00:07]} Ra3+ {[%emt 0:00:27]} 60. Kf4 {[%emt 0:00:11]} Ra4+ {[%emt 0:00:27]} 61. Kg5 {[%emt 0:00:11]} Ra5+ {[%emt 0:00:04]} 62. Kf4 {[%emt 0:00:08]} Ra7 {[%emt 0:00:51]} 63. Kg5 {[%emt 0:00:10]} Ra5+ {[%emt 0:00:16]} 64. Kf4 {[%emt 0:00:05]} 1/2-1/2

[Event "Chinese Championship-B Women 2024"]
[Site "Liaocheng"]
[Date "2024.04.24"]
[Round "5.4"]
[White "Cui, Wen"]
[Black "Chu, Ruotong"]
[Result "1-0"]
[WhiteElo "1825"]
[BlackElo "2124"]
[PlyCount "43"]
[EventDate "2024.04.24"]
[EventType "swiss"]
[EventCountry "CHN"]
[TimeControl "5400+30"]

1. e4 {[%emt 0:03:05]} c5 {[%emt 0:04:25]} 2. Nf3 {[%emt 0:00:13]} e6 {[%emt 0:00:03]} 3. d4 {[%emt 0:00:10]} cxd4 {[%emt 0:00:04]} 4. Nxd4 {[%emt 0:00:09]} Nc6 {[%emt 0:00:10]} 5. Nc3 {[%emt 0:00:30]} Qc7 {[%emt 0:00:09]} 6. Be3 {[%emt 0:00:32]} Nf6 {[%emt 0:00:38]} 7. a3 {[%emt 0:00:46]} a6 {[%emt 0:00:39]} 8. f4 {[%emt 0:01:06]} d6 {[%emt 0:18:29]} 9. Qf3 {[%emt 0:03:54]} Be7 {[%emt 0:11:21]} 10. O-O-O {[%emt 0:04:19]} O-O {[%emt 0:12:20]} 11. Rg1 {[%emt 0:14:55]} Nxd4 {[%emt 0:03:02]} 12. Rxd4 {[%emt 0:07:26]} e5 {[%emt 0:08:22]} 13. Rd2 {[%emt 0:02:23]} Bg4 {[%emt 0:02:57]} 14. Qg3 {[%emt 0:04:58]} exf4 {[%emt 0:01:02]} 15. Qxf4 {[%emt 0:13:23]} Rac8 {[%emt 0:02:21]} 16. Bd4 {[%emt 0:06:33]} Be6 {[%emt 0:02:59]} 17. g4 {[%emt 0:01:57]} Nd7 {[%emt 0:08:25]} 18. g5 {[%emt 0:02:50]} Qa5 {[%emt 0:00:56]} 19. Bf6 {[%emt 0:13:41]} Bxf6 {[%emt 0:03:57]} 20. gxf6 {[%emt 0:00:33]} Qe5 {[%emt 0:00:28]} 21. Rxg7+ {[%emt 0:00:56]} Kh8 {[%emt 0:00:02]} 22. Rxh7+ {[%emt 0:00:38]} 1-0

[Event "Chinese Championship-B Women 2024"]
[Site "Liaocheng"]
[Date "2024.04.24"]
[Round "5.5"]
[White "Shi, Yige"]
[Black "Yang, Yijing"]
[Result "0-1"]
[WhiteElo "1794"]
[BlackElo "2040"]
[PlyCount "54"]
[EventDate "2024.04.24"]
[EventType "swiss"]
[EventCountry "CHN"]
[TimeControl "5400+30"]

1. d4 {[%emt 0:00:02]} e6 {[%emt 0:00:05]} 2. c4 {[%emt 0:00:04]} Bb4+ {[%emt 0:00:04]} 3. Nc3 {[%emt 0:00:37]} c5 {[%emt 0:00:06]} 4. dxc5 {[%emt 0:03:16]} Bxc3+ {[%emt 0:20:25]} 5. bxc3 {[%emt 0:00:06]} Qa5 {[%emt 0:00:05]} 6. Qc2 {[%emt 0:26:04]} Nf6 {[%emt 0:01:36]} 7. Be3 {[%emt 0:04:21]} Nc6 {[%emt 0:02:22]} 8. Rb1 {[%emt 0:02:12]} Ng4 {[%emt 0:02:59]} 9. Bf4 {[%emt 0:05:07]} Qxc5 {[%emt 0:01:45]} 10. e3 {[%emt 0:00:47]} a6 {[%emt 0:01:44]} 11. Nf3 {[%emt 0:03:20]} O-O {[%emt 0:09:28]} 12. Be2 {[%emt 0:06:17]} f5 {[%emt 0:14:43]} 13. Qd2 {[%emt 0:12:42]} e5 {[%emt 0:03:41]} 14. Qd5+ {[%emt 0:05:27]} Qxd5 {[%emt 0:00:08]} 15. cxd5 {[%emt 0:00:03]} exf4 {[%emt 0:00:10]} 16. dxc6 {[%emt 0:00:05]} dxc6 {[%emt 0:04:04]} 17. exf4 {[%emt 0:06:02]} Re8 {[%emt 0:01:08]} 18. Kf1 {[%emt 0:01:33]} Ra7 {[%emt 0:12:23]} 19. Bc4+ {[%emt 0:08:13]} Kf8 {[%emt 0:00:40]} 20. Ng5 {[%emt 0:03:32]} Nf6 {[%emt 0:01:29]} 21. f3 {[%emt 0:02:58]} b5 {[%emt 0:01:06]} 22. Bb3 {[%emt 0:00:43]} h6 {[%emt 0:04:08]} 23. Nh3 {[%emt 0:00:39]} Rd7 {[%emt 0:00:13]} 24. Nf2 {[%emt 0:02:20]} a5 {[%emt 0:03:53]} 25. c4 {[%emt 0:02:22]} Ba6 {[%emt 0:01:17]} 26. Bd1 {[%emt 0:00:49]} bxc4 {[%emt 0:01:03]} 27. Rb6 {[%emt 0:00:15]} c3+ {[%emt 0:02:55]} 0-1